bitfinex/quotes_ETHUSD_20241122
["timestamp","ask_amount","ask_price","bid_price","bid_amount"]
[1732242130654,3.03006828,3332.3,3331.9,3.8308]
[1732242130825,3.00103,3332.2,3331.9,3.8308]
[1732242131140,3.03628821,3332.2,3331.9,3.8308]
[1732242132042,3.00111,3332.1,3331.9,3.0013]
[1732242132251,0.03512833,3332.0,3331.9,3.0013]
[1732242133144,3.0,3332.3,3331.9,3.0013]
[1732242133331,0.03512833,3332.0,3331.9,3.0013]
[1732242134173,3.0,3332.3,3331.9,3.0013]
[1732242134174,6.03100828,3332.3,3331.9,3.0013]
[1732242134328,0.03512833,3332.0,3331.9,3.0013]
[1732242134666,6.0012,3332.0,3331.9,3.0013]
[1732242134871,6.85912833,3332.0,3331.9,3.0013]
[1732242135231,10.98387128,3332.0,3331.9,3.0013]
[1732242135664,7.40912833,3332.0,3331.9,3.0013]
[1732242135833,10.98387128,3332.0,3331.9,3.0013]
[1732242136331,7.40912833,3332.0,3331.9,3.0013]
[1732242136537,10.98387128,3332.0,3331.9,3.0013]
[1732242137259,7.40912833,3332.0,3331.9,3.0013]
[1732242137462,6.85912833,3332.0,3331.9,3.0013]
[1732242138797,6.03632833,3332.0,3331.9,3.0013]
[1732242139370,6.06639661,3332.0,3331.9,3.0013]
[1732242139868,6.03632833,3332.0,3331.9,3.0013]
[1732242140827,3.03512833,3332.0,3331.9,3.0013]
[1732242141780,0.03512833,3332.0,3331.9,3.8312]
[1732242142003,3.57474295,3332.9,3332.5,9.54477167]
[1732242142668,3.00064,3332.7,3332.5,9.54477167]
[1732242142845,3.00064,3332.7,3332.5,0.8299]
[1732242143042,0.8228,3333.2,3332.5,0.8299]
[1732242143043,3.00014,3333.2,3332.5,0.8299]
[1732242143443,0.8228,3333.6,3332.6,3.0007]
[1732242143444,3.57474295,3333.0,3332.6,3.0007]
[1732242143640,6.57531295,3332.7,3332.6,3.0007]
[1732242144459,9.57531295,3332.7,3332.6,3.0007]
[1732242144880,6.57474295,3332.7,3332.6,3.0007]
[1732242145149,6.60804399,3332.7,3332.6,3.0007]
[1732242146086,0.03330104,3332.7,3332.6,3.8253]
[1732242146449,3.0,3332.9,3332.6,3.8253]
[1732242146656,0.03329834,3332.7,3332.6,3.8253]
[1732242146973,0.03329834,3332.7,3332.6,3.0007]
[1732242147184,3.00057,3332.7,3332.6,3.0007]
[1732242147367,6.06394057,3332.7,3332.6,3.0007]
[1732242147989,6.03387229,3332.7,3332.6,3.0007]
[1732242148150,0.03330229,3332.7,3332.6,3.0007]
[1732242148492,6.00048,3332.8,3332.6,3.0007]
[1732242148659,6.03387229,3332.7,3332.6,3.0007]
[1732242148990,6.82454057,3332.7,3332.6,3.0007]
[1732242149149,6.79447229,3332.7,3332.6,3.0007]
[1732242149346,10.91921524,3332.7,3332.6,3.0007]
[1732242150950,10.96021524,3332.7,3332.6,3.0007]
[1732242151374,3.0,3331.5,3331.1,0.2997]
[1732242151548,3.0,3331.2,3331.1,0.2997]
[1732242151789,6.00192,3331.2,3331.1,0.2997]
[1732242152091,6.03422733,3331.2,3331.1,0.2997]
[1732242152402,6.03422733,3331.2,3331.0,0.8117]
[1732242152692,0.03230733,3331.2,3331.0,0.8117]
[1732242153005,6.00188,3331.3,3331.0,0.8117]
[1732242153154,0.03224236,3331.1,3331.0,0.8117]
[1732242153351,3.0,3331.8,3331.0,1.1114]
[1732242153548,0.03223571,3331.1,3331.0,1.1114]
[1732242153753,6.00138,3331.8,3331.0,1.1114]
[1732242153952,0.03223841,3331.1,3331.0,1.1114]
[1732242154188,3.0,3331.8,3331.0,1.1114]
[1732242154391,0.03223841,3331.1,3331.0,1.1114]
[1732242154612,3.0,3331.8,3331.1,1.1114]
[1732242154894,0.03262863,3331.7,3331.1,1.1114]
[1732242156596,0.03262863,3331.7,3331.3,0.8117]
[1732242156896,3.0,3332.2,3331.3,1.1114]
[1732242156897,0.03256845,3331.6,3331.3,1.1114]
[1732242157099,3.00067,3332.6,3331.4,0.2997]
[1732242157264,3.00067,3332.6,3331.7,0.2997]
[1732242157466,0.03315335,3332.5,3331.9,0.8117]
[1732242157868,3.00071,3332.6,3331.9,0.8117]
[1732242158396,0.03315916,3332.5,3331.9,0.8117]
[1732242158584,3.03315916,3332.5,3331.9,0.8117]
[1732242158980,0.03315916,3332.5,3331.9,0.8117]
[1732242159185,3.0,3332.4,3331.9,0.8117]
[1732242159495,0.03309818,3332.4,3331.9,0.8117]
[1732242159696,0.03309818,3332.4,3331.9,1.1114]
[1732242159896,3.57474295,3332.9,3332.1,0.2997]
[1732242160117,0.15625038,3333.2,3331.1,0.01]
[1732242160118,0.03303159,3332.3,3332.2,1.1114]
[1732242160272,6.57485295,3333.3,3332.2,1.1114]
[1732242160273,3.00021,3333.1,3332.2,1.1114]
[1732242160454,6.57485295,3333.3,3332.2,1.1114]
[1732242160455,3.0003,3333.0,3332.2,1.1114]
[1732242160656,0.03348664,3333.0,3332.2,1.1114]
[1732242160858,3.00015,3333.2,3332.2,1.1114]
[1732242161198,0.8016,3333.4,3332.2,1.1114]
[1732242161199,6.57519295,3332.9,3332.2,1.1114]
[1732242161361,3.0,3332.8,3332.2,1.1114]
[1732242161560,0.03006828,3332.7,3332.2,1.1114]
[1732242161792,0.06337161,3332.7,3332.2,1.1114]
[1732242162258,3.03393333,3332.7,3332.2,0.8117]
[1732242163167,3.00071,3332.6,3332.2,0.8117]
[1732242163361,0.03324046,3332.6,3332.2,0.8117]
[1732242163901,3.03396046,3332.6,3332.0,0.8259]
[1732242164111,0.03324046,3332.6,3332.1,0.2997]
[1732242164492,0.03324046,3332.6,3332.1,0.03001061]
[1732242164671,3.0,3332.9,3332.1,0.03001061]
[1732242164874,3.00036,3333.0,3332.1,0.03001061]
[1732242165173,3.03343438,3332.9,3332.1,0.03001061]
[1732242165375,6.03382438,3332.9,3332.1,0.03001061]
[1732242165673,0.03343438,3332.9,3332.2,0.8259]
[1732242165875,6.00021,3333.1,3332.2,0.8259]
[1732242166071,3.0,3332.9,3332.2,0.8259]
[1732242166404,0.03336947,3332.8,3332.2,0.8259]
[1732242167599,0.03336947,3332.8,3332.2,1.1256]
[1732242167800,3.0,3333.1,3332.2,1.1256]
[1732242168002,0.03330455,3332.7,3332.2,1.1256]
[1732242168172,6.00022,3333.1,3332.2,1.1256]
[1732242168518,6.00022,3333.1,3332.3,3.3003]
[1732242168721,0.03350364,3333.0,3332.3,3.3003]
[1732242169079,3.0,3332.9,3332.3,3.3003]
[1732242169274,0.03337445,3332.8,3332.3,3.3003]
[1732242170379,0.03337445,3332.8,3332.4,0.8259]
[1732242170718,0.03330953,3332.7,3332.5,3.0008]
[1732242170915,3.0,3333.1,3332.5,3.0008]
[1732242171120,0.03324858,3332.6,3332.5,3.0008]
[1732242171274,3.0,3333.1,3332.5,3.0008]
[1732242171516,0.03350927,3333.0,3332.5,3.0008]
[1732242173740,3.00048,3332.8,3332.5,3.0008]
[1732242174143,0.03331453,3332.7,3332.6,0.2997]
[1732242174339,3.57474295,3332.8,3332.6,0.2997]
[1732242174549,0.03331453,3332.7,3332.6,3.3004]
[1732242174751,3.57474295,3332.8,3332.6,3.3004]
[1732242175077,3.03388765,3332.7,3332.6,3.3004]
[1732242175422,6.03388765,3332.7,3332.6,3.3004]
[1732242176853,3.03388765,3332.7,3332.6,3.3004]
[1732242179034,0.03331765,3332.7,3332.6,3.3004]
[1732242179329,3.57474295,3332.8,3332.6,3.3004]
[1732242179518,0.03330561,3332.7,3332.6,3.3004]
[1732242179716,3.0,3333.0,3332.6,3.3004]
[1732242179717,6.00031,3333.0,3332.6,3.3004]
[1732242179919,0.03343853,3332.9,3332.6,3.3004]
[1732242180375,3.03382853,3332.9,3332.6,3.3004]
[1732242180554,0.03006828,3332.8,3332.6,3.3004]
[1732242180859,3.00057,3332.7,3332.6,3.3004]
[1732242181072,6.79288099,3332.7,3332.6,3.3004]
[1732242182124,6.79288099,3332.7,3332.6,3.0007]
[1732242182125,10.91762394,3332.7,3332.6,3.0007]
[1732242184050,10.36762394,3332.7,3332.6,3.0007]
[1732242184873,10.36762394,3332.7,3332.6,2.914513]
[1732242185361,9.60862394,3332.7,3332.6,2.914513]
[1732242185559,9.60862394,3332.7,3332.6,3.214213]
[1732242187795,0.03331099,3332.7,3332.6,3.214213]
[1732242188086,0.759,3333.4,3332.6,3.214213]
[1732242188087,3.00005,3333.3,3332.6,3.5356343]
[1732242188301,0.0332861,3332.7,3332.6,3.5356343]
[1732242188607,3.00003,3333.3,3332.6,3.214213]
[1732242188745,3.57474295,3333.3,3332.8,0.2997]
[1732242189361,3.75929,3333.1,3332.8,0.2997]
[1732242189981,3.75929,3333.1,3332.7,0.2997]
[1732242190183,3.00039,3332.9,3332.7,0.2997]
[1732242190485,3.00048,3332.8,3332.7,0.2997]
[1732242190696,3.03289062,3332.8,3332.7,0.2997]
[1732242191616,6.03289062,3332.8,3332.7,0.2997]
[1732242191747,3.03241062,3332.8,3332.7,0.2997]
[1732242192149,6.03289062,3332.8,3332.7,0.2997]
[1732242195289,6.0629589,3332.8,3332.7,0.2997]
[1732242196208,6.8374589,3332.8,3332.7,0.2997]
[1732242196381,6.80739062,3332.8,3332.7,0.2997]
[1732242196978,6.00057,3332.7,3332.6,2.914513]
[1732242197513,6.03291571,3332.7,3332.6,2.914513]
[1732242199171,10.93215866,3332.7,3332.6,2.914513]
[1732242199809,3.00147,3331.7,3331.6,0.2997]
[1732242200012,6.57621295,3331.7,3331.6,0.2997]
[1732242200220,6.60790243,3331.7,3331.3,0.2997]
[1732242200408,3.00174,3331.4,3331.3,0.2997]
[1732242200592,3.0017,3331.5,3331.3,0.2997]
[1732242200909,0.06156287,3331.4,3331.3,0.2997]
[1732242201420,3.06330287,3331.4,3331.3,0.2997]
[1732242201770,3.00215,3331.0,3330.4,1.1295]
[1732242201978,6.57675295,3331.1,3330.6,0.2997]
[1732242202270,3.03342971,3330.9,3330.6,0.2997]
[1732242202470,3.00226,3330.9,3330.6,0.2997]
[1732242202773,3.00237,3330.7,3330.6,0.2997]
[1732242202974,0.061173,3330.8,3330.5,0.2997]
[1732242203187,0.03103972,3330.7,3330.5,0.2997]
[1732242203391,3.00246,3330.6,3330.5,0.2997]
[1732242203617,3.06350301,3330.6,3330.5,0.2997]
[1732242204107,3.00262,3330.5,3330.1,0.8298]
[1732242204313,0.03097473,3330.6,3330.1,0.8298]
[1732242204510,0.03304792,3330.4,3330.1,0.8298]
[1732242204709,0.03090973,3330.5,3330.1,0.8298]
[1732242204911,0.03077971,3330.3,3330.1,0.8298]
[1732242205075,3.0,3330.9,3330.1,0.8298]
[1732242205076,3.0023,3330.8,3330.1,0.8298]
[1732242205274,0.0307147,3330.2,3330.1,0.8298]
[1732242205481,3.0,3330.9,3330.1,0.8298]
[1732242205682,0.0307147,3330.2,3330.1,1.1295]
[1732242205982,3.00201,3331.1,3330.3,1.1295]
[1732242206184,3.0021,3331.0,3330.4,0.8298]
[1732242206382,0.03123469,3331.0,3330.4,0.8298]
[1732242207287,3.0,3331.3,3330.4,0.8298]
[1732242207492,3.00157,3331.6,3330.4,0.8298]
[1732242207493,3.0,3331.5,3330.4,0.8298]
[1732242207687,0.03149459,3331.4,3330.4,0.8298]
[1732242207921,0.03149459,3331.4,3330.4,0.2997]
[1732242208104,3.0,3331.3,3330.5,0.7782]
[1732242208428,0.03134305,3331.2,3330.5,0.7782]
[1732242208617,6.00165,3331.5,3330.5,0.7782]
[1732242208795,0.03127807,3331.1,3330.5,0.7782]
[1732242209007,6.00165,3331.5,3330.5,0.7782]
[1732242209189,0.03121309,3331.0,3330.5,0.7782]
[1732242209495,6.00165,3331.5,3330.5,0.7782]
[1732242209698,0.0311481,3330.9,3330.6,0.03002034]
[1732242209898,3.00165,3331.5,3330.7,0.7782]
[1732242210433,6.63803422,3331.4,3330.7,0.7782]
[1732242210725,3.00202,3331.1,3330.7,0.7782]
[1732242210909,6.75713,3331.3,3330.7,0.7782]
[1732242211086,3.03329003,3331.0,3330.7,0.7782]
[1732242211287,3.0,3331.0,3330.7,0.7782]
[1732242211524,0.03112401,3330.9,3330.7,0.7782]
[1732242212992,0.03112401,3330.9,3330.0,0.7782]
[1732242213994,0.03112401,3330.9,3330.1,0.2997]
[1732242214235,3.00238,3330.7,3330.1,0.2997]
[1732242214434,0.03105465,3330.8,3330.1,0.2997]
[1732242214644,3.0,3331.0,3330.3,0.2997]
[1732242214794,0.03098966,3330.7,3330.3,0.2997]
[1732242215141,3.0,3331.0,3330.3,0.2997]
[1732242215728,0.03111964,3330.9,3330.3,0.2997]
[1732242216537,3.03338964,3330.9,3330.3,0.2997]
[1732242216694,3.00236,3330.8,3330.3,0.2997]
[1732242216895,3.03340966,3330.7,3330.3,0.2997]
[1732242217101,3.00264,3330.4,3330.3,0.2997]
[1732242217342,6.03270828,3330.4,3330.3,0.2997]
[1732242217508,6.81880003,3330.4,3330.3,0.2997]
[1732242217839,3.00336,3329.6,3329.5,0.2997]
[1732242218011,6.60817123,3329.6,3329.5,0.2997]
[1732242218223,3.00363,3329.3,3329.2,0.2997]
[1732242218418,3.00363,3329.3,3328.7,0.7782]
[1732242218419,3.00389,3329.1,3328.7,0.7782]
[1732242218629,0.03006828,3329.0,3327.8,0.2997]
[1732242218939,0.03006828,3329.0,3327.6,0.04004135]
[1732242218940,3.06597656,3329.0,3328.0,0.2997]
[1732242219145,0.06206656,3329.0,3328.0,0.2997]
[1732242219326,3.00408,3328.8,3328.0,0.2997]
[1732242219533,0.03199828,3329.0,3328.1,0.7782]
[1732242219852,3.0,3329.4,3328.1,0.80824319]
[1732242219999,0.03436349,3328.9,3328.1,0.80824319]
[1732242220200,3.00381,3329.1,3328.1,0.80824319]
[1732242220477,3.00381,3329.1,3328.1,0.7782]
[1732242220644,3.0039,3329.0,3328.1,0.7782]
[1732242220813,3.03396828,3329.0,3328.1,0.7782]
[1732242221144,6.00372,3329.2,3328.2,0.03004245]
[1732242221313,3.0,3329.2,3328.2,0.03004245]
[1732242221499,3.00391,3329.0,3328.1,0.7782]
[1732242221704,3.00387,3329.1,3328.1,0.7782]
[1732242221909,6.00373,3329.2,3328.1,0.7782]
[1732242222135,3.57474295,3329.1,3328.1,0.7782]
[1732242222461,3.00455,3328.3,3327.6,0.7982]
[1732242222621,6.57964295,3327.9,3327.6,0.7982]
[1732242222808,3.57474295,3327.9,3327.6,0.7982]
[1732242223203,0.03626902,3327.8,3327.6,0.7982]
[1732242224273,3.04129902,3327.8,3327.6,0.7982]
[1732242224478,0.03626902,3327.8,3327.6,0.7982]
[1732242225032,3.0,3328.2,3327.6,0.7982]
[1732242225237,0.03616057,3327.7,3327.6,0.7982]
[1732242225436,3.00452,3328.4,3327.6,0.7982]
[1732242225676,0.03616057,3327.7,3327.6,0.7982]
[1732242226192,6.00461,3328.3,3327.6,0.7982]
[1732242226374,0.0394479,3327.7,3327.6,0.7982]
[1732242226685,0.03006828,3328.2,3327.6,0.7982]
[1732242226856,0.03945358,3327.7,3327.6,0.7982]
[1732242227058,3.03469828,3328.2,3327.6,0.7982]
[1732242227254,0.03945358,3327.7,3327.6,0.7982]
[1732242227449,3.03469828,3328.2,3327.6,0.7982]
[1732242227672,0.03616578,3327.7,3327.6,0.7982]
[1732242227893,3.03469828,3328.2,3327.6,0.7982]
[1732242228483,0.0364913,3328.1,3327.6,0.7982]
[1732242229648,0.03006828,3328.0,3327.6,0.7982]
[1732242229849,3.0049,3327.9,3326.7,0.7982]
[1732242230070,3.04122855,3327.9,3326.8,0.22160618]
[1732242230266,0.03006828,3327.8,3326.7,0.7982]
[1732242230440,0.03006828,3327.8,3326.8,0.22165767]
[1732242230441,11.42217876,3327.8,3326.8,0.22165767]
[1732242230640,11.39211048,3327.8,3326.7,0.7982]
[1732242230843,0.03624508,3327.8,3326.8,0.03005598]
[1732242231076,3.76418,3328.1,3326.9,3.8334]
[1732242231381,0.7594,3328.1,3327.0,0.41339355]
[1732242231676,0.03640576,3328.0,3327.1,3.8336]
[1732242231898,3.04127576,3328.0,3327.1,3.8336]
[1732242233313,0.03640576,3328.0,3327.1,3.38896]
[1732242233615,3.0,3328.3,3327.3,0.828]
[1732242233768,3.0,3328.3,3327.3,1.274832]
[1732242233769,0.03959087,3327.9,3327.3,1.274832]
[1732242233969,3.0,3328.3,3327.4,3.305]
[1732242234315,3.04455718,3328.2,3327.4,3.305]
[1732242234475,0.03985718,3328.2,3327.4,3.305]
[1732242234811,3.00472,3328.1,3327.4,3.305]
[1732242235120,0.03976955,3328.1,3327.4,3.305]
[1732242235909,3.0,3328.3,3327.4,3.305]
[1732242236214,3.00445,3328.4,3327.6,0.2997]
[1732242236424,0.03985831,3328.2,3327.6,0.2997]
[1732242236621,3.0,3328.6,3328.0,0.2997]
[1732242236910,3.76358,3328.7,3328.0,0.2997]
[1732242236911,0.03977125,3328.1,3328.0,0.2997]
[1732242237111,5.3508754,3329.0,3328.0,0.2997]
[1732242237270,3.76304,3329.3,3328.2,0.2997]
[1732242237469,0.04452935,3328.9,3328.4,0.2997]
[1732242237728,3.03370828,3329.3,3328.6,0.2997]
[1732242237875,0.03702645,3328.8,3328.6,0.2997]
[1732242238072,3.03370828,3329.3,3328.6,0.2997]
[1732242238388,3.00364,3329.3,3328.8,0.2997]
[1732242239118,4.5914754,3329.4,3328.9,1.1277]
[1732242239119,3.0,3329.4,3328.9,1.1277]
[1732242239423,6.76277,3329.6,3328.9,1.1277]
[1732242239600,3.76277,3329.6,3328.9,1.1277]
[1732242239772,3.00353,3329.5,3328.9,1.1277]
[1732242239977,3.00373,3329.2,3328.9,0.2997]
[1732242240320,3.00373,3329.2,3328.7,3.3039]
[1732242240485,0.03006828,3329.3,3328.7,3.3039]
[1732242240486,3.00382,3329.1,3328.7,3.3039]
[1732242240873,3.00394,3329.0,3328.7,3.3039]
[1732242241227,6.55408,3328.8,3328.7,3.3039]
[1732242241577,6.598542,3328.8,3328.7,3.3039]
[1732242242286,6.598542,3328.8,3328.7,3.0042]
[1732242243800,3.598542,3328.8,3328.7,3.0042]
[1732242244127,6.598542,3328.8,3328.7,3.0042]
[1732242245194,3.594462,3328.8,3328.7,3.0042]
[1732242245397,6.598542,3328.8,3328.7,3.0042]
[1732242247426,3.044462,3328.8,3328.7,3.0042]
[1732242247981,3.044462,3328.8,3328.7,3.22700871]
[1732242248187,0.044462,3328.8,3328.7,4.05500871]
[1732242248485,3.00388,3329.1,3328.7,4.05500871]
[1732242248684,0.03705845,3328.8,3328.7,3.0042]
[1732242248923,3.00372,3329.2,3328.8,0.2997]
[1732242249121,3.00372,3329.2,3328.9,0.22288185]
[1732242249424,0.03730244,3329.1,3328.9,0.22288185]
[1732242249638,0.03730244,3329.1,3329.0,1.35058185]
[1732242249995,3.0,3329.5,3329.0,1.35058185]
[1732242250218,0.03730244,3329.1,3329.0,1.1277]
[1732242250525,3.0,3329.6,3329.0,1.35048132]
[1732242250728,0.03730244,3329.1,3329.0,1.1277]
[1732242250885,3.0,3329.6,3329.0,1.3504893]
[1732242251081,3.56449929,3329.7,3329.0,1.3504893]
[1732242251082,0.03730244,3329.1,3329.0,1.1277]
[1732242251333,3.0,3329.6,3329.0,1.35044909]
[1732242251484,0.0373139,3329.1,3329.0,1.1277]
[1732242251685,3.0,3329.6,3329.0,1.35044807]
[1732242251889,0.0373139,3329.1,3329.0,1.1277]
[1732242252189,0.0373139,3329.1,3329.0,1.3504146]
[1732242252384,6.00337,3329.6,3329.0,1.3504146]
[1732242252385,0.03006828,3329.5,3329.0,1.3504146]
[1732242252584,0.03755784,3329.4,3329.0,1.1277]
[1732242252820,6.00337,3329.6,3329.0,1.1277]
[1732242253134,0.03747653,3329.3,3329.0,1.1277]
[1732242253424,3.0,3329.2,3329.0,0.2997]
[1732242253636,0.03006828,3329.1,3329.0,0.2997]
[1732242253783,3.03006828,3329.1,3329.0,0.2997]
[1732242253981,0.0373243,3329.1,3329.0,0.2997]
[1732242254191,0.0373243,3329.1,3329.0,1.0615]
[1732242254513,3.00249,3330.6,3329.4,0.2997]
[1732242254825,3.00249,3330.6,3329.0,3.0039]
[1732242254826,3.00265,3330.4,3329.6,0.2997]
[1732242255024,0.03550607,3330.5,3329.6,0.2997]
[1732242255226,0.03283062,3330.3,3329.6,0.2997]
[1732242255522,3.00278,3330.3,3329.8,0.2997]
[1732242255722,0.06534932,3330.2,3329.8,0.2997]
[1732242255923,3.06818932,3330.2,3329.8,0.2997]
[1732242256087,0.03528104,3330.2,3329.8,0.2997]
[1732242256283,3.03811104,3330.2,3329.8,0.2997]
[1732242256749,3.00295,3330.1,3329.8,0.2997]
[1732242256884,3.03811104,3330.2,3329.8,0.2997]
[1732242257084,0.03514516,3330.0,3329.8,0.2997]
[1732242257283,3.0,3330.5,3330.0,0.2997]
[1732242257486,3.0,3330.5,3330.1,1.0615]
[1732242259337,0.0354481,3330.4,3330.1,1.0615]
[1732242259528,3.0354481,3330.4,3330.1,1.0615]
[1732242260093,3.0354481,3330.4,3330.2,3.0028]
[1732242260401,0.0354481,3330.4,3330.2,3.0028]
[1732242260806,6.00248,3330.6,3330.2,3.0028]
[1732242261006,0.03537309,3330.3,3330.2,3.0028]
[1732242261313,3.0,3330.6,3330.3,0.2997]
[1732242261517,3.00229,3330.8,3330.3,0.2997]
[1732242261518,3.0,3330.8,3330.3,0.2997]
[1732242261720,3.00171,3331.5,3330.3,0.2997]
[1732242261721,3.00183,3331.3,3330.6,0.2997]
[1732242261959,6.56623929,3331.4,3330.6,0.2997]
[1732242262122,3.00174,3331.4,3331.0,0.2997]
[1732242262635,3.56449929,3331.1,3330.7,3.0024]
[1732242262972,3.00194,3331.2,3330.7,3.0024]
[1732242263152,0.03114682,3331.0,3330.7,3.0024]
[1732242263464,0.03108183,3330.9,3330.7,3.0024]
[1732242263672,6.00201,3331.1,3330.8,0.2997]
[1732242263862,6.00201,3331.1,3330.7,3.0024]
[1732242264527,3.0,3330.8,3330.7,3.0024]
[1732242265029,6.00228,3330.8,3330.7,3.0024]
[1732242265344,6.03234828,3330.8,3330.7,3.0024]
[1732242265737,6.00228,3330.8,3330.7,3.0024]
[1732242266441,6.03329955,3330.8,3330.7,3.0024]
[1732242267777,6.58329955,3330.8,3330.7,3.0024]
[1732242271958,7.36109955,3330.8,3330.7,3.0024]
[1732242273300,6.58329955,3330.8,3330.7,3.0024]
[1732242273860,6.58329955,3330.8,3330.7,3.3021]
[1732242274294,6.03329955,3330.8,3330.7,3.3021]
[1732242274509,0.03101955,3330.8,3330.7,4.1144]
[1732242276675,0.06108783,3330.8,3330.7,3.3021]
[1732242277075,6.06336783,3330.8,3330.7,3.3021]
[1732242277381,6.61336783,3330.8,3330.7,3.3021]
[1732242277581,6.58329955,3330.8,3330.7,3.3021]
[1732242278197,6.59107363,3330.8,3330.7,3.3021]
[1732242280167,6.59107363,3330.8,3330.7,3.2021]
[1732242283517,0.00777408,3330.8,3330.7,3.9839]
[1732242283682,0.00777408,3330.8,3330.7,4.38229]
[1732242283683,0.04090354,3330.8,3330.7,4.38229]
[1732242284016,3.00187,3331.3,3330.7,4.38229]
[1732242284176,3.00192,3331.2,3330.9,0.2997]
[1732242284583,6.56625929,3331.4,3330.9,0.2997]
[1732242284820,3.00193,3331.2,3330.9,0.2997]
[1732242285320,0.03006828,3331.3,3331.0,0.2997]
[1732242285529,0.0411697,3331.1,3331.0,0.2997]
[1732242285693,3.0,3331.3,3331.0,0.2997]
[1732242285886,0.0411697,3331.1,3331.0,0.2997]
[1732242286227,6.00184,3331.3,3330.8,0.2997]
[1732242286519,3.04118444,3331.1,3331.0,0.2997]
[1732242287034,6.04319444,3331.1,3331.0,3.4018]
[1732242289215,3.04118444,3331.1,3331.0,3.4018]
[1732242289533,3.04118444,3331.1,3331.0,3.74198]
[1732242289694,3.04118444,3331.1,3331.0,3.4018]
[1732242289897,0.04118444,3331.1,3331.0,3.4018]
[1732242290133,3.0,3331.3,3331.0,3.4018]
[1732242290293,0.03775033,3331.1,3331.0,3.4018]
[1732242290497,3.0,3331.3,3331.0,3.4018]
[1732242290724,0.04118218,3331.1,3331.0,3.4018]
[1732242290934,6.00185,3331.3,3331.0,3.4018]
[1732242291150,0.04118218,3331.1,3331.0,3.4018]
[1732242291304,6.00185,3331.3,3331.0,3.4018]
[1732242291498,0.04118218,3331.1,3331.0,3.4018]
[1732242291719,6.00185,3331.3,3331.0,3.4018]
[1732242291923,0.04118869,3331.1,3331.0,3.4018]
[1732242292105,6.00185,3331.3,3331.0,3.4018]
[1732242292314,0.04118869,3331.1,3331.0,3.4018]
[1732242292729,6.00185,3331.3,3331.0,3.4018]
[1732242292894,0.04118869,3331.1,3331.0,3.4018]
[1732242293107,6.00185,3331.3,3331.0,3.4018]
[1732242293412,6.00201,3331.1,3331.0,3.4018]
[1732242293609,6.04319869,3331.1,3331.0,3.4018]
[1732242294019,6.04319869,3331.1,3331.0,3.1021]
[1732242294544,3.04118869,3331.1,3331.0,3.1021]
[1732242294699,0.04118869,3331.1,3331.0,3.1021]
[1732242296646,3.04319869,3331.1,3331.0,3.1021]
[1732242296973,6.04319869,3331.1,3331.0,3.1021]
[1732242300851,6.07326697,3331.1,3331.0,3.1021]
[1732242301083,6.86186697,3331.1,3331.0,3.1021]
[1732242301239,6.83179869,3331.1,3331.0,3.1021]
[1732242305687,7.38179869,3331.1,3331.0,3.1021]
[1732242313518,6.59319869,3331.1,3331.0,3.1021]
[1732242314025,0.04118869,3331.1,3331.0,3.9166]
[1732242314317,3.00097,3332.3,3331.0,3.9166]
[1732242314318,3.0015,3331.7,3331.0,4.22681]
[1732242314480,3.0015,3331.7,3331.1,0.8145]
[1732242314678,0.04023263,3331.6,3331.1,0.8145]
[1732242314931,0.04023263,3331.6,3331.3,0.8145]
[1732242315080,3.00129,3331.9,3331.3,0.8145]
[1732242315280,0.04014405,3331.5,3331.4,3.1017]
[1732242315522,3.0,3331.8,3331.4,3.1017]
[1732242315693,0.04014405,3331.5,3331.4,3.1017]
[1732242316088,3.0,3331.7,3331.4,3.1017]
[1732242316285,0.04017351,3331.5,3331.4,3.1017]
[1732242316579,3.00147,3331.7,3331.4,3.1017]
[1732242316812,0.04017351,3331.5,3331.4,3.1017]
[1732242317010,3.0,3331.6,3331.4,3.1017]
[1732242317321,0.04017351,3331.5,3331.4,3.1017]
[1732242317625,6.0013,3331.9,3331.4,3.1017]
[1732242317782,0.04017351,3331.5,3331.4,3.1017]
[1732242317982,3.0,3331.6,3331.4,3.1017]
[1732242318216,0.04017351,3331.5,3331.4,3.1017]
[1732242318602,0.04017351,3331.5,3331.4,4.30782]
[1732242318804,3.00073,3332.6,3332.3,0.8145]
[1732242319221,3.00076,3332.5,3332.3,0.8145]
[1732242319725,0.04305959,3332.4,3332.3,0.8145]
[1732242320084,3.04305959,3332.4,3332.3,0.8145]
[1732242321046,0.04305959,3332.4,3332.3,3.9154]
[1732242321197,0.04305959,3332.4,3332.3,4.30694]
[1732242321529,3.56449929,3333.2,3332.4,0.8145]
[1732242321693,3.00039,3332.9,3332.4,0.8145]
[1732242321894,3.00039,3332.9,3332.5,3.1008]
[1732242322097,0.03006828,3333.1,3332.5,3.1008]
[1732242322511,3.03006828,3333.1,3332.5,3.1008]
[1732242322920,3.0,3332.9,3332.5,3.1008]
[1732242323296,3.00057,3332.7,3332.5,3.1008]
[1732242323635,10.14522757,3332.6,3332.5,3.1008]
[1732242323837,10.15450097,3332.6,3332.5,3.1008]
[1732242327035,0.03934168,3332.6,3332.5,3.8852]
[1732242327237,0.03934168,3332.6,3332.5,4.19528]
[1732242327532,3.00027,3333.1,3332.5,4.19528]
[1732242327730,3.56449929,3333.2,3332.5,4.19528]
[1732242327731,3.00031,3333.0,3332.5,3.8852]
[1732242328204,3.0,3333.2,3332.5,3.8852]
[1732242328404,3.00027,3333.1,3332.5,3.8852]
[1732242328612,3.0,3333.0,3332.5,3.8852]
[1732242329542,0.8133,3333.6,3332.5,3.8852]
[1732242329543,0.8133,3334.3,3333.1,0.2995]
[1732242329724,2.99943,3334.0,3333.1,0.32949733]
[1732242329928,2.99943,3334.0,3333.2,1.0839]
[1732242330132,0.03006828,3334.2,3333.3,3.1]
[1732242330133,2.99924,3334.2,3333.3,3.1]
[1732242330334,2.99924,3334.2,3333.3,3.12999853]
[1732242330518,0.04742302,3334.1,3333.4,0.7832]